bitfinex-derivatives/quotes_BTCF0:USTF0_20241008
["timestamp","ask_amount","ask_price","bid_price","bid_amount"]
[1728408500603,0.06060507,62284.0,62283.0,0.270322]
[1728408500909,0.003,62284.0,62283.0,0.270322]
[1728408501314,0.003,62284.0,62283.0,0.752002]
[1728408502113,0.06001384,62292.0,62291.0,0.080312]
[1728408502314,0.00240877,62292.0,62291.0,0.270312]
[1728408503406,0.00240877,62292.0,62291.0,0.271312]
[1728408503616,0.234,62299.0,62298.0,0.080303]
[1728408504911,0.241,62299.0,62298.0,0.081303]
[1728408505720,0.36192001,62310.0,62298.0,0.081303]
[1728408505926,0.24,62309.0,62304.0,0.19]
[1728408506427,0.24,62309.0,62308.0,0.08029]
[1728408507327,0.246,62309.0,62308.0,0.08029]
[1728408508016,0.252,62309.0,62308.0,0.08029]
[1728408508217,0.252,62309.0,62306.0,0.080292]
[1728408508417,0.246,62309.0,62308.0,0.001]
[1728408508616,0.332289,62309.0,62308.0,0.001]
[1728408509922,1.33348,62309.0,62305.0,0.02856325]
[1728408510111,0.080296,62304.0,62301.0,0.080299]
[1728408510314,0.080296,62304.0,62302.0,0.080298]
[1728408510512,0.19,62303.0,62302.0,0.080298]
[1728408511327,0.19,62303.0,62295.0,0.080307]
[1728408511328,0.080298,62302.0,62295.0,0.080307]
[1728408511526,0.080298,62302.0,62300.0,0.0803]
[1728408512223,0.05759119,62301.0,62300.0,0.0803]
[1728408512926,0.05959119,62302.0,62300.0,0.0803]
[1728408513523,0.05959119,62302.0,62294.0,0.38935458]
[1728408513524,0.0803,62301.0,62296.0,0.080306]
[1728408513724,0.05759119,62300.0,62295.0,0.080307]
[1728408514035,0.05759119,62300.0,62298.0,0.080302]
[1728408514533,0.05759119,62300.0,62294.0,0.38935458]
[1728408514729,0.05759119,62300.0,62298.0,0.080302]
[1728408514930,0.05759119,62299.0,62298.0,0.080302]
[1728408517122,0.05759119,62299.0,62294.0,0.39035458]
[1728408517123,0.35059119,62299.0,62294.0,0.39035458]
[1728408517330,0.05759119,62298.0,62294.0,0.38935458]
[1728408517526,0.11,62298.0,62294.0,0.38935458]
[1728408517728,0.2416,62297.0,62294.0,0.46966258]
[1728408517923,0.3616,62297.0,62296.0,0.080306]
[1728408518128,0.41919413,62297.0,62296.0,0.080306]
[1728408519129,0.3616,62297.0,62296.0,0.080306]
[1728408519726,0.3636,62297.0,62296.0,0.080306]
[1728408520230,0.2436,62297.0,62296.0,0.080306]
[1728408520637,0.2446,62297.0,62296.0,0.080306]
[1728408522738,0.2446,62297.0,62294.0,0.38935458]
[1728408523727,0.2446,62297.0,62295.0,0.080307]
[1728408523933,0.2426,62297.0,62295.0,0.080307]
[1728408524237,0.2416,62297.0,62295.0,0.080307]
[1728408526234,0.2426,62297.0,62295.0,0.080307]
[1728408527833,0.2426,62297.0,62294.0,0.38935458]
[1728408528034,0.2426,62297.0,62296.0,0.080306]
[1728408529333,0.2416,62297.0,62296.0,0.080306]
[1728408530237,0.2426,62297.0,62296.0,0.080306]
[1728408530433,0.2446,62297.0,62296.0,0.080306]
[1728408534241,0.31049881,62297.0,62296.0,0.080306]
[1728408534638,0.12648953,62297.0,62296.0,0.080306]
[1728408535638,0.12648953,62297.0,62296.0,0.680306]
[1728408535944,0.0037,62308.0,62307.0,0.270291]
[1728408536139,0.13654245,62314.0,62313.0,0.080284]
[1728408536939,0.080278,62318.0,62313.0,0.080284]
[1728408537250,0.4808,62317.0,62307.0,0.19]
[1728408537443,0.4808,62317.0,62314.0,0.080282]
[1728408537850,0.06588516,62316.0,62315.0,0.080281]
[1728408539742,0.07788516,62316.0,62315.0,0.081281]
[1728408540451,0.09188516,62316.0,62315.0,0.002]
[1728408540762,0.17216516,62316.0,62315.0,0.002]
[1728408541740,0.17216516,62316.0,62304.0,0.1937]
[1728408541741,0.08029,62308.0,62304.0,0.0037]
[1728408541951,0.25588516,62307.0,62303.0,0.080296]
[1728408542251,0.080299,62301.0,62300.0,0.4411]
[1728408542449,0.080299,62301.0,62300.0,0.4703081]
[1728408543054,0.1208,62302.0,62300.0,0.4703081]
[1728408543358,0.201098,62302.0,62300.0,0.4703081]
[1728408543556,0.002,62301.0,62300.0,0.4703081]
[1728408543944,0.004,62301.0,62291.0,0.3608]
[1728408544147,0.080314,62290.0,62288.0,0.080316]
[1728408544347,0.080316,62289.0,62286.0,0.10904894]
[1728408544550,0.1167,62291.0,62288.0,0.080315]
[1728408544954,0.1181,62290.0,62288.0,0.080315]
[1728408545559,0.1181,62290.0,62289.0,0.080315]
[1728408546261,0.198414,62290.0,62286.0,0.080317]
[1728408546452,0.080315,62289.0,62288.0,0.007]
[1728408546754,0.671955,62289.0,62288.0,0.007]
[1728408546957,0.671955,62289.0,62288.0,0.005]
[1728408547759,0.672955,62289.0,62288.0,0.012]
[1728408548162,0.001,62289.0,62288.0,0.012]
[1728408548360,0.001,62289.0,62288.0,0.092316]
[1728408549363,0.002,62289.0,62288.0,0.092316]
[1728408554778,0.002,62289.0,62288.0,0.453116]
[1728408555775,0.3608,62298.0,62288.0,1.45444]
[1728408556076,0.25590854,62309.0,62304.0,0.080295]
[1728408556077,0.0037,62305.0,62304.0,0.080295]
[1728408556263,0.3608,62309.0,62307.0,0.080291]
[1728408556463,0.3608,62309.0,62308.0,0.19]
[1728408557567,0.3608,62309.0,62308.0,0.27029]
[1728408557867,0.192684,62313.0,62309.0,0.080289]
[1728408558864,0.192684,62313.0,62308.0,0.19]
[1728408558865,0.006,62309.0,62308.0,0.27129]
[1728408559067,0.006,62309.0,62308.0,0.299818]
[1728408559266,0.006,62309.0,62308.0,0.298818]
[1728408559464,0.1334,62313.0,62312.0,0.080285]
[1728408559663,0.1334,62313.0,62312.0,0.19]
[1728408559865,0.3234,62313.0,62309.0,0.001]
[1728408560065,0.080289,62310.0,62308.0,0.028528]
[1728408560367,0.117,62309.0,62307.0,0.080291]
[1728408561471,0.117,62309.0,62303.0,0.5508]
[1728408561472,0.117,62309.0,62303.0,0.3608]
[1728408561666,0.197289,62309.0,62305.0,0.080294]
[1728408562267,0.200289,62309.0,62305.0,0.080294]
[1728408562567,0.12,62309.0,62306.0,0.080293]
[1728408562870,0.118,62309.0,62306.0,0.080293]
[1728408563477,0.12,62309.0,62306.0,0.080293]
[1728408564177,0.003,62309.0,62308.0,0.08029]
[1728408564382,0.14307917,62309.0,62308.0,0.08029]
[1728408564973,0.14407917,62309.0,62308.0,0.08029]
[1728408565579,0.14207917,62309.0,62308.0,0.08129]
[1728408565781,0.06788786,62309.0,62308.0,0.08129]
[1728408565977,0.06588786,62309.0,62308.0,0.08229]
[1728408572381,0.080286,62312.0,62309.0,0.080289]
[1728408572588,0.180286,62312.0,62309.0,0.080289]
[1728408573786,0.1,62312.0,62310.0,0.080287]
[1728408574488,0.102,62312.0,62310.0,0.080287]
[1728408574688,0.104,62312.0,62310.0,0.080287]
[1728408574990,0.104,62312.0,62308.0,0.080289]
[1728408575186,0.102,62312.0,62308.0,0.080289]
[1728408575392,0.104,62312.0,62308.0,0.080289]
[1728408576092,0.184286,62312.0,62308.0,0.080289]
[1728408576289,0.182286,62312.0,62308.0,0.080289]
[1728408576487,0.184286,62312.0,62308.0,0.080289]
[1728408577086,0.184286,62312.0,62309.0,0.080288]
[1728408578188,0.182286,62312.0,62309.0,0.080288]
[1728408578391,0.080287,62311.0,62307.0,0.19]
[1728408578590,0.080291,62308.0,62303.0,0.47019765]
[1728408578894,0.1129,62307.0,62305.0,0.080294]
[1728408581188,0.1159,62307.0,62303.0,0.38990065]
[1728408581389,0.1159,62307.0,62306.0,0.080293]
[1728408581588,0.1159,62307.0,62306.0,0.270293]
[1728408581790,0.1199,62307.0,62306.0,0.270293]
[1728408582605,0.1129,62307.0,62306.0,0.270293]
[1728408582792,0.1219,62307.0,62306.0,0.270293]
[1728408583796,0.1219,62307.0,62303.0,0.02910065]
[1728408584002,0.080293,62306.0,62303.0,0.080296]
[1728408584205,0.1219,62307.0,62303.0,0.080296]
[1728408584393,0.202192,62307.0,62303.0,0.080296]
[1728408585098,0.202192,62307.0,62304.0,0.080294]
[1728408585307,0.199192,62307.0,62304.0,0.080294]
[1728408586005,0.195192,62307.0,62304.0,0.080294]
[1728408586701,0.193192,62307.0,62304.0,0.080294]
[1728408586893,0.194192,62307.0,62304.0,0.080294]
[1728408587404,0.14008672,62306.0,62304.0,0.080294]
[1728408587599,0.14008672,62305.0,62304.0,0.080294]
[1728408587804,0.14008672,62305.0,62304.0,0.083294]
[1728408588202,0.14008672,62305.0,62304.0,0.080294]
[1728408589003,0.06589141,62305.0,62304.0,0.080294]
[1728408589206,0.001,62306.0,62305.0,0.080294]
[1728408589701,0.001,62306.0,62305.0,1.161774]
[1728408590094,0.001,62306.0,62305.0,1.275074]
[1728408590608,0.0037,62317.0,62316.0,0.08028]
[1728408590816,0.14005358,62317.0,62316.0,0.63108]
[1728408592111,0.14005358,62317.0,62316.0,0.63208]
[1728408594212,0.06587582,62317.0,62316.0,0.63208]
[1728408594400,0.08267552,62325.0,62316.0,0.66050556]
[1728408594604,0.08267552,62325.0,62321.0,0.19]
[1728408596306,0.08027,62324.0,62321.0,0.19]
[1728408596711,0.08027,62324.0,62321.0,0.270273]
[1728408597305,0.08027,62324.0,62322.0,0.080271]
[1728408597708,0.08227,62324.0,62322.0,0.080271]
[1728408598310,0.080271,62323.0,62322.0,0.080271]
[1728408598507,0.08227,62324.0,62322.0,0.080271]
[1728408598711,0.08327,62324.0,62322.0,0.080271]
[1728408599016,0.08527,62324.0,62322.0,0.080271]
[1728408599610,0.08327,62324.0,62322.0,0.080271]
[1728408599804,0.08627,62324.0,62322.0,0.080271]
[1728408600005,0.006,62324.0,62322.0,0.080271]
[1728408600317,0.006,62324.0,62317.0,0.19]
[1728408600510,0.006,62324.0,62322.0,0.080271]
[1728408600703,0.006,62324.0,62316.0,0.38922556]
[1728408600704,0.19,62323.0,62316.0,0.38922556]
[1728408600914,0.080279,62317.0,62316.0,0.38922556]
[1728408601116,0.200279,62317.0,62316.0,0.38922556]
[1728408601411,0.561079,62317.0,62316.0,0.02842556]
[1728408601616,0.4808,62317.0,62310.0,0.19]
[1728408601922,0.080295,62304.0,62303.0,0.0037]
[1728408602111,0.080295,62304.0,62298.0,0.080303]
[1728408602112,0.3608,62304.0,62298.0,0.080303]
[1728408602307,0.080301,62300.0,62297.0,0.080304]
[1728408602616,0.22259955,62299.0,62292.0,0.26589508]
[1728408602817,0.19,62302.0,62293.0,0.080309]
[1728408602818,0.080304,62297.0,62293.0,0.080309]
[1728408603008,0.22259955,62296.0,62293.0,0.080309]
[1728408603209,0.22259955,62295.0,62293.0,0.080309]
[1728408603414,0.22259955,62294.0,62292.0,0.26589508]
[1728408603617,0.22259955,62293.0,62292.0,0.02830556]
[1728408603815,0.22259955,62293.0,62289.0,0.080314]
[1728408604005,0.3608,62294.0,62292.0,0.009]
[1728408604206,0.22263362,62293.0,62292.0,0.009]
[1728408604613,0.30294262,62293.0,62292.0,0.009]
[1728408604807,0.30294262,62293.0,62292.0,0.02]
[1728408605316,0.22042574,62293.0,62292.0,0.02]
[1728408605622,0.22142574,62293.0,62292.0,0.02]
[1728408606805,0.22142574,62293.0,62292.0,0.009]
[1728408607004,0.22242574,62293.0,62292.0,0.02]
[1728408608015,0.44211674,62293.0,62283.0,0.0037]
[1728408608211,0.44211674,62293.0,62278.0,0.0037]
[1728408608212,0.080325,62281.0,62278.0,0.0037]
[1728408608411,0.58343362,62281.0,62273.0,0.19]
[1728408608613,0.58343362,62281.0,62278.0,0.02876202]
[1728408609024,0.22263362,62281.0,62280.0,0.27273393]
[1728408609322,0.06590553,62281.0,62280.0,0.75441393]
[1728408609618,0.1152,62292.0,62288.0,0.080316]
[1728408609821,0.1152,62292.0,62290.0,0.19]
[1728408610511,0.080322,62284.0,62280.0,0.0177]
[1728408610709,0.080322,62284.0,62280.0,0.014]
[1728408611514,0.441117,62287.0,62280.0,0.094325]
[1728408611927,0.441117,62287.0,62280.0,0.080325]
[1728408611928,0.001,62284.0,62280.0,0.080325]
[1728408612415,0.001,62284.0,62283.0,0.19]
[1728408612720,0.001,62284.0,62283.0,0.631122]
[1728408614111,0.001,62287.0,62286.0,0.080319]
[1728408614308,0.002,62287.0,62286.0,0.270319]
[1728408614729,0.001,62287.0,62286.0,0.270319]
[1728408615720,0.1152,62292.0,62289.0,0.080314]
[1728408615907,0.1152,62292.0,62291.0,0.19]
[1728408616114,0.3608,62294.0,62293.0,0.080309]
[1728408617305,0.441102,62299.0,62294.0,0.080308]
[1728408617510,0.441102,62299.0,62297.0,0.19]
[1728408617914,0.3608,62299.0,62294.0,0.080308]
[1728408618116,0.3608,62299.0,62293.0,0.19]
[1728408618117,0.3608,62299.0,62295.0,0.080307]
[1728408618714,0.3608,62299.0,62297.0,0.19]
[1728408618920,0.3608,62299.0,62297.0,0.270304]
[1728408619226,0.3608,62299.0,62298.0,0.080303]
[1728408619422,0.3618,62299.0,62298.0,0.080303]
[1728408619630,0.3628,62299.0,62298.0,0.080303]
[1728408620017,0.001,62299.0,62298.0,0.080303]
[1728408620220,0.001,62299.0,62297.0,0.19]
[1728408620221,0.1142,62301.0,62300.0,0.0803]
[1728408620524,0.1142,62301.0,62297.0,0.193]
[1728408620525,0.00240838,62305.0,62297.0,0.193]
[1728408620715,0.00240838,62305.0,62304.0,0.19]
[1728408621627,0.00240838,62305.0,62304.0,0.270295]
[1728408622129,0.00240838,62305.0,62302.0,0.080297]
[1728408622422,0.08270338,62305.0,62302.0,0.080297]
[1728408622814,0.08670338,62305.0,62302.0,0.080297]
[1728408623418,0.08570338,62305.0,62302.0,0.080297]
[1728408623618,0.08770338,62305.0,62302.0,0.080297]
[1728408624027,0.08570338,62305.0,62302.0,0.080297]
[1728408624533,0.080304,62298.0,62295.0,0.3608]
[1728408624722,0.19,62303.0,62294.0,0.080308]
[1728408624723,0.3608,62301.0,62294.0,0.080308]
[1728408625027,0.1158,62297.0,62295.0,0.080306]
[1728408625218,0.1158,62297.0,62294.0,0.02907605]
[1728408625219,0.1208,62296.0,62294.0,0.02907605]
[1728408625418,0.1208,62296.0,62290.0,0.080313]
[1728408625618,0.1208,62296.0,62289.0,0.36320804]
[1728408625827,0.1208,62296.0,62295.0,0.080307]
[1728408626526,0.18669641,62296.0,62294.0,0.005]
[1728408626824,0.14620341,62295.0,62294.0,0.005]
[1728408627428,0.06589641,62295.0,62294.0,0.005]
[1728408627928,0.14620341,62295.0,62294.0,0.005]
[1728408628128,0.14620341,62295.0,62291.0,0.080311]
[1728408628335,0.06589641,62294.0,62293.0,0.080309]
[1728408628828,0.06589641,62294.0,62293.0,1.351909]
[1728408629617,0.06689641,62294.0,62293.0,1.351909]
[1728408629825,0.06689641,62294.0,62293.0,0.751909]
[1728408630030,0.06789641,62294.0,62293.0,1.356909]
[1728408631335,0.06789641,62294.0,62293.0,0.756909]
[1728408631733,0.002,62294.0,62293.0,0.756909]
[1728408631926,0.002,62294.0,62293.0,1.356909]
[1728408632128,0.002,62294.0,62293.0,0.275309]
[1728408632438,0.002,62294.0,62293.0,0.756909]
[1728408632929,0.002,62294.0,62293.0,0.275309]
[1728408633730,0.002,62294.0,62293.0,0.085309]
[1728408635633,0.002,62294.0,62293.0,0.275309]
[1728408636941,0.0037,62305.0,62304.0,0.270295]
[1728408637139,0.47292001,62307.0,62304.0,0.080295]
[1728408637331,0.4718,62307.0,62304.0,0.080295]
[1728408637946,0.4718,62307.0,62297.0,0.3608]
[1728408638139,0.080297,62303.0,62299.0,0.080302]
[1728408638433,0.080299,62302.0,62297.0,0.441103]
[1728408638632,0.080301,62300.0,62297.0,0.3608]
[1728408638841,0.1118,62299.0,62297.0,0.38908288]
[1728408639641,0.303102,62299.0,62297.0,0.39208288]
[1728408639841,0.06589614,62298.0,62297.0,0.39208288]
[1728408640031,0.06589614,62298.0,62297.0,0.39308288]
[1728408640635,0.14619914,62298.0,62297.0,0.004]
[1728408641238,0.06589614,62298.0,62297.0,0.005]
[1728408641434,0.14619914,62298.0,62297.0,0.005]
[1728408641935,0.14619914,62298.0,62297.0,0.001]
[1728408642134,0.14619914,62298.0,62297.0,0.005]
[1728408645644,0.14619914,62298.0,62282.0,0.37284]
[1728408645645,1.34775914,62298.0,62282.0,0.37284]
[1728408645946,0.080311,62292.0,62287.0,0.080317]
[1728408646142,0.25540814,62291.0,62287.0,0.080317]
[1728408646341,0.3608,62288.0,62282.0,0.080323]
[1728408646543,0.18009614,62287.0,62282.0,0.080323]
[1728408646841,0.441123,62283.0,62280.0,0.03179366]
[1728408647041,0.080325,62281.0,62280.0,0.00240789]
[1728408647347,0.080325,62281.0,62270.0,0.32198864]
[1728408647549,0.19,62271.0,62267.0,0.0037]
[1728408647741,0.080341,62269.0,62264.0,0.080347]
[1728408648043,0.1142,62270.0,62266.0,0.080344]
[1728408648851,0.001,62269.0,62266.0,0.080344]
[1728408649546,0.1152,62270.0,62265.0,0.19]
[1728408649744,0.1152,62270.0,62267.0,0.080343]
[1728408650646,0.001,62270.0,62269.0,0.27034]
[1728408651043,0.3608,62274.0,62273.0,0.080335]
[1728408651237,0.3608,62274.0,62273.0,0.270335]
[1728408651843,0.197227,62280.0,62273.0,0.19]
[1728408652357,0.080328,62279.0,62273.0,0.193]
[1728408652654,0.080328,62279.0,62274.0,0.080333]
[1728408653163,0.441133,62276.0,62273.0,0.003]
[1728408653451,0.3608,62276.0,62273.0,0.003]
[1728408653646,0.080334,62274.0,62273.0,0.003]
[1728408654249,0.080334,62274.0,62273.0,0.002]
[1728408655254,0.080334,62274.0,62269.0,0.39006119]
[1728408655451,0.083334,62274.0,62269.0,0.39006119]
[1728408655652,0.083334,62274.0,62269.0,0.47040119]
[1728408656248,0.083334,62274.0,62270.0,0.19]
[1728408656452,0.002,62274.0,62270.0,0.270338]
[1728408656758,0.002,62274.0,62271.0,0.080337]
[1728408657255,0.002,62274.0,62270.0,0.19]
[1728408657446,0.080335,62274.0,62270.0,0.19]
[1728408658451,0.1109,62275.0,62270.0,0.19]
[1728408658656,0.1209,62275.0,62270.0,0.270338]
[1728408658847,0.201233,62275.0,62270.0,0.270338]
[1728408659355,0.080336,62273.0,62269.0,0.02926119]
[1728408659557,0.080336,62273.0,62266.0,0.19]
[1728408660053,0.191233,62275.0,62269.0,0.08034]
[1728408660262,0.311233,62275.0,62270.0,0.001]
[1728408660454,0.080335,62274.0,62270.0,0.001]
[1728408661056,0.1109,62275.0,62266.0,0.19]
[1728408661057,0.3608,62271.0,62266.0,0.003]
[1728408661252,0.080343,62267.0,62262.0,0.00084]
[1728408661562,0.080355,62258.0,62257.0,0.00610883]
[1728408661759,0.080355,62258.0,62257.0,0.00240883]
[1728408661760,0.631155,62258.0,62257.0,0.00240883]
[1728408662455,0.3608,62258.0,62257.0,0.00240883]
[1728408662652,0.3608,62263.0,62257.0,0.19240883]
[1728408662856,0.3608,62263.0,62260.0,0.080351]
[1728408663066,0.3608,62263.0,62257.0,0.19240883]
[1728408663356,0.3608,62263.0,62262.0,0.080349]
[1728408663658,0.1112,62270.0,62268.0,0.080341]
[1728408663961,0.1112,62270.0,62269.0,0.19]
[1728408664155,0.1112,62270.0,62269.0,0.27034]
[1728408664357,0.00240959,62271.0,62270.0,0.080339]
[1728408664858,0.475,62280.0,62271.0,0.080338]
[1728408665057,0.475,62280.0,62270.0,0.080339]
[1728408665058,0.475,62280.0,62279.0,0.080328]
[1728408666762,0.3608,62280.0,62279.0,0.080328]
[1728408668253,0.3618,62280.0,62279.0,0.080328]
[1728408668455,0.001,62280.0,62279.0,0.4696206]
[1728408668963,0.3608,62287.0,62281.0,0.080325]
[1728408669167,0.441118,62287.0,62281.0,0.080325]
[1728408669662,0.19,62285.0,62279.0,0.3608]
[1728408669858,0.080325,62281.0,62274.0,0.0037]
[1728408670051,0.080325,62281.0,62274.0,0.02864886]
[1728408670257,0.080325,62281.0,62275.0,0.080333]
[1728408671058,0.3608,62283.0,62273.0,0.5508]
[1728408671258,0.3608,62283.0,62278.0,0.080328]
[1728408672365,0.3618,62283.0,62278.0,0.080328]
[1728408672660,0.3618,62283.0,62280.0,0.080325]
[1728408672854,0.3618,62283.0,62281.0,0.080325]
[1728408674062,0.3608,62283.0,62281.0,0.080325]
[1728408674257,0.3608,62283.0,62281.0,0.10882214]
[1728408674657,0.3628,62283.0,62281.0,0.10882214]
[1728408674858,0.3628,62283.0,62277.0,0.080329]
[1728408675259,0.3608,62283.0,62277.0,0.080329]
[1728408675462,0.3608,62283.0,62273.0,0.55164]
[1728408675754,0.3608,62283.0,62278.0,0.080328]
[1728408676763,0.3618,62283.0,62278.0,0.080328]
[1728408676964,0.3628,62283.0,62278.0,0.080328]
[1728408677568,0.3618,62283.0,62273.0,0.19]
[1728408677759,0.3618,62283.0,62274.0,0.080334]
[1728408677760,0.3608,62277.0,62274.0,0.080334]
[1728408677955,0.3608,62277.0,62273.0,0.2184277]
[1728408677956,0.3618,62283.0,62276.0,0.080331]
[1728408678155,0.3618,62283.0,62273.0,0.2184277]
[1728408678367,0.3618,62283.0,62281.0,0.080325]
[1728408679166,0.3618,62283.0,62282.0,0.080324]
[1728408679768,0.3608,62283.0,62282.0,0.080324]
[1728408680167,0.3618,62283.0,62282.0,0.080324]
[1728408680370,0.3608,62289.0,62282.0,0.080324]
[1728408680371,0.3608,62289.0,62282.0,1.44248]
[1728408680664,0.36320883,62296.0,62287.0,0.5508]
[1728408680871,0.1147,62299.0,62294.0,0.19]
[1728408681070,0.1147,62299.0,62298.0,0.270303]
[1728408681476,0.3608,62304.0,62301.0,0.080299]
[1728408681669,0.3608,62304.0,62303.0,0.19]
[1728408682266,0.3608,62304.0,62300.0,0.19]
[1728408682473,0.080297,62303.0,62297.0,0.080304]
[1728408683577,0.080297,62303.0,62298.0,0.080303]
[1728408683973,0.3638,62304.0,62295.0,0.19]
[1728408684173,0.3638,62304.0,62303.0,0.270297]
[1728408684879,0.3628,62304.0,62300.0,0.0803]
[1728408685078,0.3628,62304.0,62301.0,0.06393285]
[1728408685079,0.3608,62304.0,62301.0,0.06393285]
[1728408685275,0.3608,62304.0,62303.0,0.04794438]
[1728408685477,0.3608,62304.0,62303.0,0.12824138]
[1728408685777,0.3608,62304.0,62303.0,0.080297]
[1728408685778,0.3628,62304.0,62303.0,0.080297]
[1728408685968,0.002,62304.0,62303.0,0.14422985]
[1728408686169,0.0037,62314.0,62313.0,0.080284]
[1728408686480,0.4649,62317.0,62313.0,0.19]
[1728408686679,0.4649,62317.0,62314.0,0.0478906]
[1728408686983,0.4649,62317.0,62315.0,0.0478906]
[1728408687178,0.54518,62317.0,62314.0,0.0478906]
[1728408687381,0.54518,62317.0,62313.0,0.0478906]
[1728408687382,0.080282,62314.0,62313.0,0.0478906]
[1728408687983,0.080282,62314.0,62311.0,0.0478906]
[1728408688169,0.441085,62312.0,62311.0,0.0478906]
[1728408688376,0.080288,62310.0,62307.0,0.0478906]
[1728408688584,0.080288,62310.0,62306.0,0.0478906]
[1728408689484,0.080289,62309.0,62306.0,0.0478906]
[1728408689679,0.1161,62308.0,62305.0,0.0478906]
[1728408689984,0.080292,62307.0,62305.0,0.0478906]
[1728408690683,0.1161,62308.0,62306.0,0.1281826]
[1728408690888,0.1161,62308.0,62303.0,0.37300983]
[1728408690889,0.004,62310.0,62309.0,0.080289]
[1728408691080,0.009,62310.0,62309.0,0.080289]
[1728408691382,0.005,62310.0,62308.0,0.04784296]
[1728408691779,0.005,62310.0,62307.0,0.04784296]
[1728408691984,0.07170328,62308.0,62307.0,0.06386022]
[1728408692172,0.002,62308.0,62307.0,0.06386022]
[1728408692483,0.002,62308.0,62301.0,0.441099]
[1728408692484,0.080292,62307.0,62304.0,0.07982527]
[1728408692681,0.553492,62307.0,62304.0,0.07982527]
[1728408693273,0.553492,62307.0,62305.0,0.07982527]
[1728408693475,0.4732,62307.0,62306.0,0.080293]
[1728408693678,0.4732,62307.0,62306.0,0.28247656]
[1728408693889,0.4732,62307.0,62306.0,0.28247596]
[1728408694387,0.4732,62307.0,62306.0,0.20265069]
[1728408694879,0.559491,62307.0,62306.0,0.12235769]
[1728408695075,0.559491,62307.0,62306.0,0.0304844]
[1728408695076,0.564491,62307.0,62306.0,0.0304844]
[1728408695274,0.564491,62307.0,62301.0,0.02826977]
[1728408695275,0.080298,62302.0,62301.0,0.02826977]
[1728408695474,0.080298,62302.0,62298.0,0.09589928]
[1728408695475,0.080301,62300.0,62298.0,0.09589928]
[1728408695684,0.080301,62300.0,62297.0,0.09589928]
[1728408696076,0.3608,62302.0,62296.0,0.17620428]
[1728408696479,0.080301,62300.0,62297.0,0.09589928]
[1728408696985,0.080301,62300.0,62296.0,0.09589928]
[1728408697384,0.080301,62300.0,62297.0,0.09589928]
[1728408697784,0.080301,62300.0,62298.0,0.002]
[1728408697986,0.3618,62302.0,62298.0,0.002]
[1728408698189,0.3618,62302.0,62298.0,0.09589928]
[1728408698397,0.001,62300.0,62299.0,0.09589928]
[1728408699388,0.1113,62301.0,62299.0,0.09589928]
[1728408699583,0.1113,62301.0,62298.0,0.09789928]
[1728408699584,0.3913,62301.0,62298.0,0.09789928]
[1728408699787,0.3913,62301.0,62298.0,0.002]
[1728408699788,0.080302,62299.0,62298.0,0.002]
[1728408701092,0.080302,62299.0,62298.0,0.003]
[1728408701293,0.080302,62299.0,62298.0,0.001]
[1728408701992,0.080303,62298.0,62294.0,0.02962857]
[1728408702193,0.001,62299.0,62287.0,0.00240831]
[1728408702194,0.3608,62295.0,62287.0,0.00240831]
[1728408702396,0.3608,62295.0,62293.0,0.080309]
[1728408703594,0.3608,62295.0,62294.0,0.080308]
[1728408704688,0.3608,62295.0,62289.0,0.28]
[1728408704887,0.441108,62295.0,62290.0,0.080313]
[1728408705193,0.1069,62294.0,62290.0,0.080313]
[1728408705695,0.080313,62291.0,62287.0,0.11370987]
[1728408705887,0.08031,62293.0,62289.0,0.002]
[1728408706085,0.1069,62294.0,62289.0,0.002]
[1728408706086,0.080312,62292.0,62289.0,0.002]
[1728408706290,0.1069,62294.0,62290.0,0.001]
[1728408706596,0.08031,62293.0,62290.0,0.001]
[1728408706983,0.08031,62293.0,62291.0,0.37764631]
[1728408707289,0.08031,62293.0,62292.0,0.5266298]
[1728408707686,0.15989705,62294.0,62292.0,0.5266298]
[1728408707883,0.24020505,62294.0,62293.0,0.32450291]
[1728408708199,0.24020505,62294.0,62293.0,0.45256577]
[1728408708493,0.24020505,62294.0,62293.0,0.45258264]
[1728408709297,0.24620505,62294.0,62293.0,0.45258264]
[1728408709495,0.24620505,62294.0,62293.0,0.32451978]
[1728408709796,0.31620505,62294.0,62293.0,0.45258264]
[1728408710187,0.31620505,62294.0,62293.0,0.5749706]
[1728408710582,0.31620505,62294.0,62293.0,0.44690774]
[1728408710783,0.31020505,62294.0,62293.0,0.44690774]
[1728408710988,0.31520505,62294.0,62293.0,0.5749706]
[1728408711383,0.31520505,62294.0,62293.0,0.44690774]
[1728408711589,0.31320505,62294.0,62293.0,0.44690774]
[1728408711789,0.31120505,62294.0,62293.0,0.5749706]
[1728408712095,0.26298856,62294.0,62293.0,0.5749706]
[1728408712393,0.15468856,62294.0,62293.0,0.5769706]
[1728408712595,0.15468856,62294.0,62293.0,0.44890774]
[1728408712596,0.15568856,62294.0,62293.0,0.44890774]
[1728408712988,0.15568856,62294.0,62293.0,0.52921674]
[1728408714100,0.11450919,62294.0,62293.0,0.52821674]
[1728408714398,0.11450919,62294.0,62293.0,0.6403141]
[1728408714788,0.002,62294.0,62293.0,0.6403141]
[1728408715092,0.005,62294.0,62293.0,0.080309]
[1728408717294,0.3608,62295.0,62293.0,0.002]
[1728408717494,0.3608,62295.0,62294.0,0.080308]
[1728408718887,0.3608,62295.0,62292.0,0.1058]
[1728408719094,0.3608,62295.0,62288.0,0.080315]
[1728408719095,0.080313,62290.0,62288.0,0.080315]
[1728408719391,0.080308,62294.0,62288.0,0.080315]
[1728408719591,0.080313,62291.0,62288.0,0.080315]